Cogmind - Beta 15 @@@ ROGUE MODE // 2025.05.26 @ 15:20:58 Player: TAFFA Result: Destroyed by Autobeam Turret with Autobeam Performance ------------- Evolutions (0) 0 Regions Visited (2) 400 Robots Destroyed (25) 125 Value Destroyed (426) 426 Prototype IDs (0) 0 Alien Tech Used (0) 0 Bonus (0) 0 TOTAL SCORE: 951 Bonus ------- None Cogmind --------- Core Integrity 0/250 Matter 150/300 Energy 121/125 System Corruption 0% Temperature Cool (20) Movement Walking (120) Location -10/Subcaves Parts ------- > --- POWER (1) -------- Light Ion Engine > --- PROPULSION (2) --- Aluminum Leg Aluminum Leg > --- UTILITY (2) ------ Medium Storage Unit Signal Interpreter > --- WEAPON (2) ------- Makeshift Laser Mini Grenade Launcher > --- INVENTORY (10) --- Aluminum Leg Improved Heat Sink Large Storage Unit Makeshift System Shield EM Pulse Gun Subdweller Beam Cannon Heavy Assault Rifle Heavy Assault Rifle Peak State ------------ > --- POWER ------------ Ion Engine > --- PROPULSION ------- Aluminum Leg Aluminum Leg > --- UTILITY ---------- Medium Storage Unit Signal Interpreter > --- WEAPON ----------- Makeshift Laser Heavy Assault Rifle > --- INVENTORY -------- Light Ion Engine Aluminum Leg Aluminum Leg Improved Heat Sink Large Storage Unit EM Pulse Gun Subdweller Beam Cannon Heavy Assault Rifle Heavy Assault Rifle Mini Grenade Launcher [Rating: 12] Favorites ----------- Power Ion Engine Engine Ion Engine Propulsion Aluminum Leg Leg Aluminum Leg Utility Seismic Detector Device Seismic Detector Storage Medium Storage Unit Processor Signal Interpreter Weapon Heavy Assault Rifle Energy Gun EM Pulse Gun Energy Cannon Subdweller Beam Cannon Ballistic Gun Heavy Assault Rifle Launcher Grenade Launcher Build | -11 -10 -10 ------- Run | Yrd Mat Sub Slots Evolved . | . . . Power . | . . . Propulsion . | . . . Utility . | . . . Weapon . | . . . Parts Attached 19 | 2 10 7 Power 1 | . . 1 Engine 1 | . . 1 Core . | . . . Reactor . | . . . Propulsion 1 | . . 1 Treads . | . . . Leg 1 | . . 1 Wheel . | . . . Hover . | . . . Flight . | . . . Utility 6 | 1 4 1 Device 1 | 1 . . Storage 4 | . 4 . Processor 1 | . . 1 Hackware . | . . . Protection . | . . . Artifact . | . . . Weapon 11 | 1 6 4 Energy Gun 5 | 1 2 2 Energy Cannon 1 | . . 1 Ballistic Gun 3 | . 3 . Ballistic Cannon . | . . . Launcher 2 | . 1 1 Special Weapon . | . . . Impact Weapon . | . . . Slashing Weapon . | . . . Piercing Weapon . | . . . Special Melee Weapon . | . . . Unidentified Prototypes . | . . . Parts Lost 3 | . . 3 Power 1 | . . 1 Propulsion 1 | . . 1 Utility 1 | . . 1 Weapon . | . . . Highest Loss Streak 2 | . . 2 To Critical Strikes . | . . . Average Backups 8 | 5 8 9 Power . | 1 1 . Propulsion 2 | 3 2 1 Utility 1 | . 1 2 Weapon 2 | 1 2 4 Tool/Special . | . . . Unused Backups 16 | 7 3 6 Power 2 | 1 . 1 Propulsion 8 | 4 2 2 Utility 3 | 1 . 2 Weapon 3 | 1 1 1 Tool/Special . | . . . Average Slot Usage (%) 98 | . 100 96 Engine 13 | . 14 13 Leg 27 | . 28 27 Device 11 | . 14 4 Storage 14 | . 14 14 Processor 2 | . . 8 Energy Gun 12 | . 14 6 Ballistic Gun 15 | . 13 20 Peak Build Rating 12 | 7 10 12 Average Rating 8 | 6 8 10 On Entrance 7 | 6 7 10 Naked Turns . | . . . Heaviest Build 89 | 14 89 26 Greatest Support 20 | 20 20 20 Greatest Overweight (x) 4 | . 4 1 Average Overweight (x) . | . . . Largest Inventory Capacity 25 | 8 25 10 Average Capacity 9 | 8 9 10 Most Carried 10 | 6 10 10 Average Carried 8 | 4 8 9 Final Capacity 10 | 8 10 10 Final Carried 10 | 4 10 8 Class Distribution -------------------- 100% | Mutant Dominant Class ---------------- Mutant | -10/Materials Mutant | -10/Subcaves Resources | -11 -10 -10 ----------- Run | Yrd Mat Sub Matter Collected 535 | 195 240 100 Remotely . | . . . Salvage Created 632 | 61 401 170 Parts 40 | 6 22 12 Haulers Intercepted 2 | . 2 . Recyclers Shooed . | . . . Parts Field Recycled . | . . . Retrieved Matter . | . . . Parts Self-Destructed 8 | . . 8 Prevented . | . . . Kills | -11 -10 -10 ------- Run | Yrd Mat Sub Combat Hostiles Destroyed 14 | . 8 6 Guns 12 | . 6 6 AOE 2 | . 2 . Classes Destroyed 8 | 1 5 2 Builder 3 | . 3 . Tunneler 3 | 3 . . Hauler 2 | . 2 . Watcher 3 | . 3 . Swarmer 7 | . 3 4 Grunt 5 | . 5 . Sentry 1 | . . 1 Subdweller 1 | . . 1 Best Kill Streak 8 | 2 8 4 Combat Bots Only 4 | . 3 4 Max Kills in Single Turn 2 | 1 2 2 Gunslinging . | . . . Exploded 2 | . 2 . Melee . | . . . Uniques/NPCs Destroyed . | . . . Combat | -11 -10 -10 -------- Run | Yrd Mat Sub Hostile Shots Fired 117 | . 41 76 Missed 33 | . 13 20 Hits 84 | . 28 56 Projectile 84 | . 28 56 Critical Strikes 1 | . . 1 Damage Taken 988 | . 353 635 Core 250 | . 94 156 Absorbed by Shields . | . . . Core Remaining (%) 100 | 100 . . Volleys Fired 66 | 15 34 17 Largest 2 | 2 2 2 Hottest 80 | 60 80 73 Shots Fired 132 | 30 68 34 Gun 127 | 30 63 34 Cannon . | . . . Launcher 5 | . 5 . Special . | . . . Kinetic 78 | 22 27 29 Thermal 20 | 8 7 5 Explosive 5 | . 5 . Electromagnetic 29 | . 29 . Robot Hit Streak 8 | 5 8 8 Robot Miss Streak 3 | 2 3 3 Penetration Max . | . . . Secondary Targets 1 | . . 1 Max Gunslinging Chain 1 | . . 1 Shots Hit Robots 79 | 18 38 23 Core Hits 40 | 4 27 9 Critical Kills . | . . . Critical Parts Destroyed . | . . . Critical Strikes . | . . . Melee Attacks . | . . . Impact . | . . . Slashing . | . . . Piercing . | . . . Sneak Attacks . | . . . Combat Hostiles . | . . . Follow-up Attacks . | . . . Damage Inflicted 1630 | 203 1047 380 Guns 1111 | 203 528 380 Cannons . | . . . Explosions 519 | . 519 . Melee . | . . . Ramming . | . . . Kinetic 679 | 160 190 329 Thermal 211 | 43 117 51 Explosive 444 | . 444 . Electromagnetic 296 | . 296 . Impact . | . . . Slashing . | . . . Piercing . | . . . Highest Corruption . | . . . Average Corruption . | . . . Corruption Purged . | . . . Corruption Blocked . | . . . Overload Shots . | . . . Overflow Damage 12 | . 12 . Projectiles . | . . . Explosions 12 | . 12 . Melee . | . . . Knockbacks . | . . . Impact . | . . . Kinetic . | . . . Secondary . | . . . Self-Inflicted Damage 38 | . 38 . Shots 1 | . 1 . Rammed . | . . . Targets Rammed . | . . . Kicked . | . . . Crushed . | . . . Highest Temperature 84 | . 84 2 Average Temperature 26 | . 26 2 Received Heat Transfer 369 | . 150 219 Siege Activations . | . . . Martial Activations . | . . . Shielding Activations . | . . . Robots Disrupted . | . . . Combat Hostiles . | . . . Robots Corrupted . | . . . Combat Hostiles . | . . . Parts Fried 1 | . 1 . Impact Corruptions . | . . . Robots Melted . | . . . Combat Hostiles . | . . . Parts Melted 1 | . . 1 Heat Transferred 411 | 100 200 111 Parts Sabotaged . | . . . Parts Stolen . | . . . Parts Stripped . | . . . Power Chain Reactions 2 | . 2 . Alert | -11 -10 -10 ------- Run | Yrd Mat Sub Maximum Alert Level . | . . . Low Security (%) 100 | 100 100 . Level 1 . | . . . Level 2 . | . . . Level 3 . | . . . Level 4 . | . . . Level 5 . | . . . High Security . | . . . Max Security . | . . . Peak Influence 136 | 5 136 . Initial . | . . . Average 42 | 1 48 . Influence Increases 519 | 15 284 220 Destroy 0b10 Robot/C 260 | . 160 100 Destroy 0b10 Robot/NC 55 | 15 40 . Destroy Leader 40 | . 40 . Successful Hack 16 | . 16 . Destroy Structure 13 | . 13 . Lose Combat Pursuer 135 | . 15 120 Influence Decreases 380 | 15 188 177 Entered New Map 47 | . . 47 Time Decay 303 | 15 188 100 Lost Part 30 | . . 30 Squads Dispatched 1 | . 1 . Investigation . | . . . Extermination . | . . . Reinforcement 1 | . 1 . Assault . | . . . Garrison . | . . . Intercept . | . . . Searches Triggered . | . . . Construction Impeded . | . . . Haulers Reinforced . | . . . Active Scanning Responses . | . . . Cargo Convoy Interrupts . | . . . Stealth | -11 -10 -10 --------- Run | Yrd Mat Sub Distress Signals 2 | . 2 . Communications Jammed . | . . . Distress Signals . | . . . Times Spotted 29 | . 16 13 Peak Tracking Total 6 | . 4 6 Tactical Retreats 6 | . 1 5 Traps | -11 -10 -10 ------- Run | Yrd Mat Sub Traps Triggered . | . . . Indirectly . | . . . Trap Hack Attempts . | . . . Triggered . | . . . Disarmed . | . . . Reprogrammed . | . . . Reused . | . . . Traps Extracted . | . . . Installed . | . . . Triggered . | . . . Machines | -11 -10 -10 ---------- Run | Yrd Mat Sub Machines Disabled . | . . . Max in Single Turn . | . . . Machines Repaired . | . . . Machines Dismantled . | . . . Machines Sabotaged . | . . . Overloaded Fab Kills . | . . . Hacking | -11 -10 -10 --------- Run | Yrd Mat Sub Machines Accessed 3 | . 3 . Terminals 3 | . 3 . Fabricators . | . . . Repair Stations . | . . . Recycling Units . | . . . Scanalyzers . | . . . Garrison Access . | . . . Total Hacks 17 | . 17 . Successful 9 | . 9 . Failed 8 | . 8 . Catastrophic 2 | . 2 . Database Lockouts . | . . . Manual 15 | . 15 . Terminals 17 | . 17 . Fabricators . | . . . Repair Stations . | . . . Recycling Units . | . . . Scanalyzers . | . . . Garrison Access . | . . . Terminal Hacks 3 | . 3 . Branch Access Points 1 | . 1 . Alert Level 1 | . 1 . Hauler Manifests 1 | . 1 . Fabricator Hacks . | . . . Repair Station Hacks . | . . . Recycling Unit Hacks . | . . . Scanalyzer . | . . . Garrison Access Hacks . | . . . Unauthorized Hacks 6 | . 6 . Terminals 6 | . 6 . Botnet 3 | . 3 . Skim 3 | . 3 . Fabricators . | . . . Repair Stations . | . . . Recycling Units . | . . . Scanalyzers . | . . . Garrison Access . | . . . Data Cores Recovered . | . . . Used . | . . . Hacking Detections 3 | . 3 . Full Trace Events . | . . . Feedback Events . | . . . Feedback Blocked . | . . . Robot Schematics Acquired . | . . . Robots Built . | . . . Authchips . | . . . Time . | . . . Total Robot Build Rating . | . . . Part Schematics Acquired . | . . . Parts Built . | . . . Authchips . | . . . Time . | . . . Total Part Build Rating . | . . . Parts Repaired . | . . . Time . | . . . Parts Recycled . | . . . Recycled Matter . | . . . Retrieved Matter . | . . . Retrieved Components . | . . . Parts Scanalyzed . | . . . Part Schematics Acquired . | . . . Parts Damaged . | . . . Bothacking | -11 -10 -10 ------------ Run | Yrd Mat Sub Used RIF Installer . | . . . Robots Hacked . | . . . Non-combat . | . . . Combat . | . . . Robot Hacks Applied . | . . . Relay Couplers Released . | . . . Fabnet Peak Effective % . | . . . Robots Rewired . | . . . Allies Hacked . | . . . Hacks Repelled . | . . . Allies | -11 -10 -10 -------- Run | Yrd Mat Sub Total Allies . | . . . Largest Group . | . . . Highest-Rated Group . | . . . Highest-Rated Ally . | . . . Total Orders . | . . . Ally Attacks . | . . . Total Damage . | . . . Kills . | . . . Allies Corrupted . | . . . Allies Melted . | . . . Intel | -11 -10 -10 ------- Run | Yrd Mat Sub Active Infowar (turns) 572 | 4 516 52 Seismic 572 | 4 516 52 Robot Analysis Total . | . . . Derelict Logs Recovered 2 | . . 2 Drone Launches . | . . . Drone Recoveries . | . . . Exploration | -11 -10 -10 ------------- Run | Yrd Mat Sub Turns Passed 803 | 82 516 205 Spaces Moved 354 | 10 250 94 Core . | . . . Treads . | . . . Legs 354 | 10 250 94 Wheels . | . . . Hover . | . . . Flight . | . . . Fastest Speed 120 | 120 120 120 Average Speed 139 | 120 138 145 Slowest Speed 400 | 120 400 190 Overloaded Moves . | . . . Propulsion Burnouts . | . . . Robots Hopped . | . . . Potential Cave-ins . | . . . Cave-ins Triggered . | . . . Exploration Rate (%) 19 | 3 44 10 Regions Visited 2 Branch Regions 1 Pre-discovered Areas 2 | . . 2 Known Exits Taken . | . . . Unknown Exits Taken 2 | 1 1 . Scrap Searched . | . . . Spaces Dug . | . . . Terrain Destroyed 14 | . 14 . Melee . | . . . Projectile . | . . . AOE 14 | . 14 . Terrain Rammed . | . . . Walls Destroyed . | . . . Machines Disabled . | . . . Actions | -11 -10 -10 --------- Run | Yrd Mat Sub Total 531 | 51 352 128 Wait 60 | 23 32 5 Move 352 | 9 249 94 Hop . | . . . Pick Up 16 | . 13 3 Fast Attach 1 | 1 . . Attach 3 | . . 3 Detach . | . . . Swap 19 | 1 14 4 Drop 14 | 2 10 2 Fire 66 | 15 34 17 Melee . | . . . Ram . | . . . Kick . | . . . Crush . | . . . Escape Stasis . | . . . Rewire . | . . . Trap . | . . . Miscellaneous . | . . . Route ------- -11/Scrapyard -10/Materials (discovered 3 exits: [*Mat] / Min / [*Sub]) -10/Subcaves (discovered 1 exit: [*Rec]) History --------- Turn | Location | Event 1 | -11/Scrapyard | Discovered new exit (range 3) 83 | -11/Scrapyard | Entered Materials 225 | -10/Materials | Identified exit to Mines 307 | -10/Materials | Discovered new exit (range 9) 319 | -10/Materials | Build established: Mutant 586 | -10/Materials | Discovered new exit (range 7) 599 | -10/Materials | Entered Subcaves 646 | -10/Subcaves | Core integrity fell below 50% 697 | -10/Subcaves | Shifting Twisted Machinery released Mak. Laser 699 | -10/Subcaves | Shifting Twisted Machinery released Mak. System Shield 731 | -10/Subcaves | Learned location of Zion (-6) 768 | -10/Subcaves | Discovered new exit (range 16) 770 | -10/Subcaves | Core integrity fell below 20% 804 | -10/Subcaves | Destroyed by Autobeam Turret with Autobeam Last Messages --------------- 00694_ Acquired 47 matter. Mak. Laser falls loose from the Twisted Machinery. Mak. System Shield falls loose from the Twisted Machinery. 00707_ Subatomizers dissect the Disposable Heat Sink. 00717_ Dropped EM Pulse Gun. 00717_ Acquired Mak. Laser. 00722_ Dropped Hvy. Assault Rifle. 00724_ Acquired Mak. System Shield. 00731_ Acquired derelict log, extracted data. World map updated: -6/Zion. 00746_ Acquired derelict log, extracted data. World map confirmed: -6/Zion. 00768_ EXIT=FOUND 00769_ Ion Engine destroyed. 00769_ Aluminum Leg destroyed. 00779_ S-10 Pest destroyed. 00786_ Lgt. Ion Engine fries itself beyond repair. 00787_ S-10 Pest destroyed. 00789_ Lgt. Assault Rifle fries itself beyond repair. 00793_ Flight Unit fries itself beyond repair. Map ----- +----------------------------------------------------+ | ?????????????????"""" ### #????????????? ??????? | | ?????????????????"""" ### #????????????????????? | | ?????????????????"""" ## ##???????????????????? | | ?????????????????"""" # #??####?????????????? | | ?????????????????""""" ##??# ###????#??????? | | ?????????????? ### #### # ### #??????? | | ??????????????????????# #??????? | | ??????????????????????# #??????? | | ??????????????????????#" ### #?????? | | ??????????????????????#" ####???? #????? | | ???????????????? ## #???????? ??? | | ?????????????????? #?# #?????????? #?? | | ??????????????????######### #### ????? ? | | ???????????????????????## #??????????? | | ?????????????????????### #??????????? | | ?????????????????????# ## ## #??????????? | | ?????????????????????# ####?###??#??????????? | | ?????????????????????# #????????????????????? | | ?????????????????????## ##????????????????????? | | ??????????????????????## ##?????????????????????? | | ???????????????????????# #??????????????????????? | | ???????????????????????# #?????????? "?????????? | | ?????????????????????### ######## "?????????? | | ?????????????????????# % % t""?????????? | | ????????????????????## %